bitfinex/quotes_BTCUSD_20230110
["timestamp","ask_amount","ask_price","bid_price","bid_amount"]
[1673317145920,2.49392377,17211.0,17210.0,0.0356824]
[1673317147165,2.03053636,17211.0,17210.0,0.03557897]
[1673317147422,1.44951336,17211.0,17210.0,0.00351897]
[1673317147925,1.62340877,17211.0,17210.0,0.00351897]
[1673317148178,1.44953874,17211.0,17210.0,0.00351897]
[1673317149944,1.62340877,17211.0,17210.0,0.00351897]
[1673317150194,1.79767171,17211.0,17210.0,0.00351897]
[1673317150719,1.62340877,17211.0,17210.0,0.00351897]
[1673317152605,2.05856537,17211.0,17210.0,0.00351897]
[1673317152834,1.62340877,17211.0,17210.0,0.00351897]
[1673317153108,1.62340877,17211.0,17210.0,0.03657897]
[1673317154414,0.9534989,17211.0,17210.0,0.6806095]
[1673317154670,0.57969232,17211.0,17210.0,0.6806095]
[1673317154927,0.31829734,17211.0,17210.0,0.6806095]
[1673317155440,0.31835884,17211.0,17210.0,0.6806095]
[1673317155695,0.31829734,17211.0,17210.0,0.6806095]
[1673317156204,0.31829734,17211.0,17210.0,0.85424359]
[1673317156720,0.144,17211.0,17210.0,0.6806095]
[1673317157278,0.1440615,17211.0,17210.0,0.6806095]
[1673317157752,0.144,17211.0,17210.0,0.6806095]
[1673317158277,0.31829734,17211.0,17210.0,0.6806095]
[1673317158522,0.144,17211.0,17210.0,0.6475495]
[1673317158772,0.1440615,17211.0,17210.0,0.6475495]
[1673317159067,0.144,17211.0,17210.0,0.6475495]
[1673317159891,0.1440615,17211.0,17210.0,0.6475495]
[1673317160346,0.31829734,17211.0,17210.0,0.6475495]
[1673317160868,0.1440615,17211.0,17210.0,0.6475495]
[1673317161141,0.144,17211.0,17210.0,0.6475495]
[1673317162180,0.31835884,17211.0,17210.0,0.6475495]
[1673317163182,0.144,17211.0,17210.0,0.6475495]
[1673317163767,0.31829734,17211.0,17210.0,0.6475495]
[1673317164297,0.144,17211.0,17210.0,0.6874295]
[1673317167071,0.1440615,17211.0,17210.0,0.6874295]
[1673317167328,0.144,17211.0,17210.0,0.6874295]
[1673317168127,0.1440615,17211.0,17210.0,0.6874295]
[1673317168881,0.144,17211.0,17210.0,0.6874295]
[1673317169360,0.1440615,17211.0,17210.0,0.6874295]
[1673317169812,0.1440615,17211.0,17210.0,0.6475495]
[1673317172050,0.144,17211.0,17210.0,0.6475495]
[1673317173124,0.31829734,17211.0,17210.0,0.6475495]
[1673317173380,0.57969232,17211.0,17210.0,0.6475495]
[1673317173638,0.77969232,17211.0,17210.0,0.00351897]
[1673317174155,1.06918432,17211.0,17210.0,0.00351897]
[1673317175434,0.77975382,17211.0,17210.0,0.04099449]
[1673317175682,0.77975382,17211.0,17210.0,0.03819449]
[1673317177387,0.77969232,17211.0,17210.0,0.03819449]
[1673317177678,0.51829734,17211.0,17210.0,0.03819449]
[1673317180728,0.77969232,17211.0,17210.0,0.03819449]
[1673317180970,0.77969232,17211.0,17210.0,0.00071897]
[1673317181220,0.77975382,17211.0,17210.0,0.00071897]
[1673317186664,0.77975382,17211.0,17210.0,0.03188897]
[1673317190730,0.77969232,17211.0,17210.0,0.73767733]
[1673317190986,0.51829734,17211.0,17210.0,0.73767733]
[1673317191505,0.31829734,17211.0,17210.0,0.73767733]
[1673317192006,0.144,17211.0,17210.0,0.73767733]
[1673317192269,0.144,17211.0,17210.0,0.70650733]
[1673317193068,0.144,17211.0,17210.0,0.88014142]
[1673317194357,0.144,17211.0,17210.0,4.50122682]
[1673317194620,0.144,17211.0,17210.0,4.02717881]
[1673317194621,1e-08,17211.0,17210.0,4.02717881]
[1673317195165,1e-08,17211.0,17210.0,4.32717881]
[1673317195447,1e-08,17211.0,17210.0,4.02717881]
[1673317195694,0.07803057,17212.0,17210.0,4.02717881]
[1673317195958,0.001,17211.0,17210.0,2.92413722]
[1673317196206,0.001,17211.0,17210.0,3.6561012]
[1673317196749,0.001,17211.0,17210.0,4.06046226]
[1673317197254,0.07803057,17212.0,17210.0,4.01246226]
[1673317197513,0.07903057,17212.0,17211.0,0.361716]
[1673317197763,0.07793392,17212.0,17211.0,0.561716]
[1673317198088,0.07793392,17212.0,17211.0,0.397026]
[1673317198529,0.09793392,17212.0,17211.0,0.397026]
[1673317199376,0.09793392,17212.0,17211.0,0.581023]
[1673317200148,0.09793392,17212.0,17211.0,0.942739]
[1673317200675,0.09793392,17212.0,17211.0,0.581023]
[1673317201423,0.09462592,17212.0,17211.0,0.581023]
[1673317203590,0.09462592,17212.0,17211.0,0.616823]
[1673317206465,0.26892326,17212.0,17211.0,0.616823]
[1673317206723,0.09462592,17212.0,17211.0,0.616823]
[1673317207287,0.88428702,17212.0,17211.0,0.616823]
[1673317207588,2.67370114,17212.0,17211.0,0.0358]
[1673317207852,2.86996551,17212.0,17211.0,0.0358]
[1673317208105,3.45095551,17212.0,17211.0,0.0358]
[1673317208860,3.59678891,17212.0,17211.0,0.0358]
[1673317209376,0.2,17211.0,17210.0,0.00071897]
[1673317209642,2.22664609,17211.0,17210.0,0.00071897]
[1673317209931,2.51613809,17211.0,17210.0,0.00071897]
[1673317210422,3.12567355,17211.0,17210.0,0.00071897]
[1673317210689,3.53103461,17211.0,17210.0,0.04871897]
[1673317211279,3.69983461,17211.0,17210.0,0.04871897]
[1673317211537,3.35161887,17211.0,17210.0,0.04871897]
[1673317213064,3.69967353,17211.0,17210.0,0.04871897]
[1673317213581,4.28069653,17211.0,17210.0,0.04871897]
[1673317214088,3.93264187,17211.0,17210.0,0.04871897]
[1673317214903,4.28061904,17211.0,17210.0,0.04871897]
[1673317215709,4.27961904,17211.0,17210.0,0.00071897]
[1673317215959,4.31761904,17211.0,17210.0,0.01171897]
[1673317216479,3.96964187,17211.0,17210.0,0.01171897]
[1673317216736,4.31759806,17211.0,17210.0,0.01171897]
[1673317217259,3.52770641,17211.0,17210.0,0.01171897]
[1673317217534,3.26003673,17211.0,17210.0,0.01171897]
[1673317217833,4.15909466,17211.0,17210.0,0.01171897]
[1673317218091,3.78197528,17211.0,17210.0,0.01171897]
[1673317218638,4.49782154,17211.0,17210.0,0.01171897]
[1673317218933,3.26003673,17211.0,17210.0,0.01171897]
[1673317219221,3.78197528,17211.0,17210.0,0.01171897]
[1673317221784,3.78197528,17211.0,17210.0,0.0116365]
[1673317222556,3.26003673,17211.0,17210.0,0.0116365]
[1673317224102,3.51003673,17211.0,17210.0,0.0116365]
[1673317228206,3.34123673,17211.0,17210.0,0.0116365]
[1673317229484,3.77539228,17211.0,17210.0,0.0116365]
[1673317229749,3.34123673,17211.0,17210.0,0.0116365]
[1673317230009,3.77539249,17211.0,17210.0,0.0116365]
[1673317230270,3.34123673,17211.0,17210.0,0.0116365]
[1673317230609,3.77534886,17211.0,17210.0,0.0116365]
[1673317231544,3.57534886,17211.0,17210.0,0.0116365]
[1673317232044,3.64495309,17211.0,17210.0,0.0116365]
[1673317234784,3.21084096,17211.0,17210.0,0.0116365]
[1673317235504,3.11084096,17211.0,17210.0,0.0116365]
[1673317240075,3.10534096,17211.0,17210.0,0.0116365]
[1673317242899,3.62727951,17211.0,17210.0,0.0116365]
[1673317244901,3.92727951,17211.0,17210.0,0.0116365]
[1673317246691,3.62727951,17211.0,17210.0,0.0116365]
[1673317246957,3.36366843,17211.0,17210.0,0.0116365]
[1673317247206,3.10534096,17211.0,17210.0,0.0116365]
[1673317247977,2.93774096,17211.0,17210.0,0.0116365]
[1673317248228,3.23774096,17211.0,17210.0,0.0116365]
[1673317249002,2.93774096,17211.0,17210.0,0.0116365]
[1673317249249,3.52507269,17211.0,17210.0,0.0116365]
[1673317249775,3.82507269,17211.0,17210.0,0.0116365]
[1673317255176,3.82593832,17211.0,17210.0,0.0116365]
[1673317256053,4.15558256,17211.0,17210.0,0.00883863]
[1673317256564,4.21348959,17211.0,17210.0,0.00883863]
[1673317256824,4.23748959,17211.0,17210.0,0.00883863]
[1673317257074,0.2,17210.0,17209.0,0.00326384]
[1673317257326,2.32625223,17210.0,17209.0,0.00326384]
[1673317257614,3.77785823,17210.0,17209.0,0.00326384]
[1673317257833,4.0361857,17210.0,17209.0,0.00326384]
[1673317258333,4.2861857,17210.0,17209.0,0.00326384]
[1673317258816,4.2946857,17210.0,17209.0,0.00326384]
[1673317259070,4.4316857,17210.0,17209.0,0.00526384]
[1673317259581,4.76154113,17210.0,17209.0,0.00526384]
[1673317259833,5.0198686,17210.0,17209.0,0.00526384]
[1673317260091,4.4316857,17210.0,17209.0,0.00526384]
[1673317260873,4.4317472,17210.0,17209.0,0.00526384]
[1673317263232,5.01980199,17210.0,17209.0,0.00526384]
[1673317266287,5.29554056,17210.0,17209.0,0.00526384]
[1673317266548,4.71980199,17210.0,17209.0,0.00526384]
[1673317267068,5.01980199,17210.0,17209.0,0.00526384]
[1673317267315,4.4317472,17210.0,17209.0,0.00392969]
[1673317267853,5.01965155,17210.0,17209.0,0.00392969]
[1673317268622,4.4317472,17210.0,17209.0,0.00392969]
[1673317269862,4.76127168,17210.0,17209.0,0.00392969]
[1673317270113,5.01959915,17210.0,17209.0,0.00392969]
[1673317273245,4.4317472,17210.0,17209.0,0.00392969]
[1673317273497,4.76122675,17210.0,17209.0,0.00392969]
[1673317273757,5.01955422,17210.0,17209.0,0.00392969]
[1673317276735,4.4317472,17210.0,17209.0,0.00392969]
[1673317277509,4.4317472,17210.0,17209.0,0.00292027]
[1673317278011,4.2629472,17210.0,17209.0,0.00292027]
[1673317287572,4.2629472,17210.0,17209.0,0.00217142]
[1673317294943,4.00461973,17210.0,17209.0,0.00217142]
[1673317295188,4.2629472,17210.0,17209.0,0.00217142]
[1673317297350,4.2629472,17210.0,17209.0,0.00097894]
[1673317299322,4.4317472,17210.0,17209.0,0.00097894]
[1673317299580,4.4317472,17210.0,17209.0,0.00054796]
[1673317307119,0.2,17209.0,17207.0,0.00190283]
[1673317307373,3.66358174,17208.0,17207.0,0.00190283]
[1673317308133,3.91358174,17208.0,17207.0,0.00190283]
[1673317308379,3.91358174,17208.0,17207.0,0.00290283]
[1673317308624,3.91358174,17208.0,17207.0,0.00190283]
[1673317308875,4.04958174,17208.0,17207.0,0.00290283]
[1673317309404,4.34958174,17208.0,17207.0,0.00290283]
[1673317309901,4.992158,17208.0,17207.0,0.00290283]
[1673317310157,4.95048547,17208.0,17207.0,0.00290283]
[1673317310412,4.05058174,17208.0,17207.0,0.00290283]
[1673317310637,4.68967381,17208.0,17207.0,0.00190283]
[1673317310891,5.33735394,17208.0,17207.0,0.00290283]
[1673317311144,5.59574291,17208.0,17207.0,0.00290283]
[1673317312163,4.95665084,17208.0,17207.0,0.00290283]
[1673317312420,5.3811913,17208.0,17207.0,0.00290283]
[1673317312680,5.63951877,17208.0,17207.0,0.00290283]
[1673317312928,4.67685388,17208.0,17207.0,0.00214977]
[1673317313192,4.75582641,17208.0,17207.0,0.00214977]
[1673317313451,5.60810155,17208.0,17207.0,0.00214977]
[1673317315013,5.66600858,17208.0,17207.0,0.00214977]
[1673317323122,5.66600858,17208.0,17207.0,0.00057334]
[1673317323883,5.66600858,17208.0,17207.0,0.00031694]
[1673317327673,6.27750858,17208.0,17207.0,0.00031694]
[1673317327925,6.27750858,17208.0,17207.0,6.94e-06]
[1673317328197,6.44470858,17208.0,17207.0,6.94e-06]
[1673317328954,7.30006728,17208.0,17207.0,6.94e-06]
[1673317329210,0.2,17207.0,17206.0,0.00375146]
[1673317329477,4.52400413,17207.0,17206.0,0.00375146]
[1673317329722,4.87140316,17207.0,17206.0,0.00375146]
[1673317330372,5.12140316,17207.0,17206.0,0.00375146]
[1673317330373,5.25840316,17207.0,17206.0,0.00375146]
[1673317331968,5.25840316,17207.0,17206.0,0.00202635]
[1673317332995,0.2,17206.0,17205.0,0.0023058]
[1673317333245,4.49315539,17206.0,17205.0,0.0023058]
[1673317333507,4.78264739,17206.0,17205.0,0.0023058]
[1673317334028,5.03264739,17206.0,17205.0,0.0023058]
[1673317334579,5.16964739,17206.0,17205.0,0.0023058]
[1673317336349,5.16970889,17206.0,17205.0,0.0023058]
[1673317337755,5.75651724,17206.0,17205.0,0.0023058]
[1673317338002,5.75652223,17206.0,17205.0,0.0023058]
[1673317338548,5.16970889,17206.0,17205.0,0.0023058]
[1673317338768,5.22761592,17206.0,17205.0,0.0023058]
[1673317342332,5.22761592,17206.0,17202.0,0.02630933]
[1673317342601,0.52146114,17203.0,17202.0,0.02630933]
[1673317342856,1.71408492,17203.0,17202.0,0.02630933]
[1673317343124,4.14218907,17203.0,17202.0,0.02630933]
[1673317343642,4.27818907,17203.0,17202.0,0.02630933]
[1673317343896,0.2,17202.0,17201.0,0.03570762]
[1673317344149,2.45004493,17202.0,17201.0,0.03570762]
[1673317344419,2.73953693,17202.0,17201.0,0.03570762]
[1673317345187,2.98953693,17202.0,17201.0,0.03570762]
[1673317345948,3.12553693,17202.0,17201.0,0.03570762]
[1673317346700,3.26159843,17202.0,17201.0,0.03570762]
[1673317348448,3.69803369,17202.0,17201.0,0.03570762]
[1673317348698,4.21949483,17202.0,17201.0,0.03570762]
[1673317348948,3.69803369,17202.0,17201.0,0.03570762]
[1673317349464,3.94749483,17202.0,17201.0,0.03570762]
[1673317349747,4.08349483,17202.0,17201.0,0.00909763]
[1673317352239,4.38349483,17202.0,17201.0,0.00909763]
[1673317352729,4.08349483,17202.0,17201.0,0.00909763]
[1673317352988,4.38349483,17202.0,17201.0,0.00909763]
[1673317354273,4.08349483,17202.0,17201.0,0.00909763]
[1673317354529,4.59057241,17202.0,17201.0,0.00909763]
[1673317354815,4.76076667,17202.0,17201.0,0.00909763]
[1673317355040,4.08349483,17202.0,17201.0,0.00909763]
[1673317355301,4.71713478,17202.0,17201.0,0.00909763]
[1673317355589,3.75923838,17202.0,17201.0,0.00909763]
[1673317356634,3.17791138,17202.0,17201.0,0.00909763]
[1673317359347,3.75923838,17202.0,17201.0,0.00909763]
[1673317359600,4.28069952,17202.0,17201.0,0.00909763]
[1673317360140,3.75923838,17202.0,17201.0,0.00909763]
[1673317360397,3.99647355,17202.0,17201.0,0.00909763]
[1673317362298,4.51793469,17202.0,17201.0,0.00909763]
[1673317363867,4.51793469,17202.0,17201.0,0.00903606]
[1673317364128,4.28069952,17202.0,17201.0,0.00903606]
[1673317364383,3.64705957,17202.0,17201.0,0.00903606]
[1673317364634,4.3381459,17202.0,17201.0,0.00903606]
[1673317364921,3.64705957,17202.0,17201.0,0.00903606]
[1673317365497,4.15540373,17202.0,17201.0,0.00903606]
[1673317367291,4.15540373,17202.0,17201.0,0.00354706]
[1673317368867,3.75227195,17202.0,17201.0,0.00354706]
[1673317370427,4.16781232,17202.0,17201.0,0.00354706]
[1673317370942,4.5709441,17202.0,17201.0,0.00354706]
[1673317372020,4.63625155,17202.0,17201.0,0.00354706]
[1673317372488,4.22071118,17202.0,17201.0,0.00354706]
[1673317372745,2.27955971,17202.0,17201.0,0.00354706]
[1673317373025,1.69823271,17202.0,17201.0,0.00354706]
[1673317373296,1.69823271,17202.0,17201.0,0.17214706]
[1673317373793,1.91075599,17202.0,17201.0,0.17214706]
[1673317374052,1.94282384,17202.0,17201.0,0.17314706]
[1673317375869,1.76844658,17202.0,17201.0,0.17314706]
[1673317378329,0.88574077,17202.0,17201.0,0.87389959]
[1673317378761,0.62446908,17202.0,17201.0,1.23561559]
[1673317379524,0.62453058,17202.0,17201.0,1.23561559]
[1673317379775,0.48946908,17202.0,17201.0,1.23461559]
[1673317380024,0.59546908,17202.0,17201.0,1.23761559]
[1673317380537,0.59546908,17202.0,17201.0,0.87589959]
[1673317381078,0.79546908,17202.0,17201.0,0.87589959]
[1673317381324,1.05674077,17202.0,17201.0,0.87589959]
[1673317381590,1.05680227,17202.0,17201.0,0.17514706]
[1673317381855,1.05668228,17202.0,17201.0,0.17514706]
[1673317382111,1.23110242,17202.0,17201.0,0.17514706]
[1673317382866,1.23116392,17202.0,17201.0,0.17514706]
[1673317383119,1.66681287,17202.0,17201.0,0.17514706]
[1673317383393,1.23116392,17202.0,17201.0,0.20407706]
[1673317383668,1.79012817,17202.0,17201.0,0.20407706]
[1673317383892,2.66409989,17202.0,17201.0,0.03547706]
[1673317384152,4.11624589,17202.0,17201.0,0.03547706]
[1673317384395,3.04258166,17202.0,17201.0,0.03547706]
[1673317384674,3.33207366,17202.0,17201.0,0.03547706]
[1673317385695,3.58664606,17202.0,17201.0,0.03547706]
[1673317386221,4.19152353,17202.0,17201.0,0.03547706]
[1673317387524,4.08552353,17202.0,17201.0,0.03247706]
[1673317387790,3.62457055,17202.0,17201.0,0.03247706]
[1673317388053,3.48857055,17202.0,17201.0,0.03247706]
[1673317388309,3.62457055,17202.0,17201.0,0.03247706]
[1673317388584,3.10310941,17202.0,17201.0,0.03247706]
[1673317389082,3.53021683,17202.0,17201.0,0.00354706]
[1673317389085,4.12536061,17202.0,17201.0,0.00354706]
[1673317389615,3.53871683,17202.0,17201.0,0.00354706]
[1673317390387,3.53871683,17202.0,17201.0,0.00346963]
[1673317394024,3.53871683,17202.0,17201.0,0.00261632]
[1673317394025,4.12536061,17202.0,17201.0,0.00261632]
[1673317394271,4.48765992,17202.0,17201.0,0.00261632]
[1673317394526,4.39793006,17202.0,17201.0,0.00261632]
[1673317394773,4.12536061,17202.0,17201.0,0.00261632]
[1673317396060,4.46226061,17202.0,17201.0,0.00261632]
[1673317396581,4.14818628,17202.0,17201.0,0.00261632]
[1673317396835,4.46260634,17202.0,17201.0,0.00261632]
[1673317397100,4.2937861,17202.0,17201.0,0.00261632]
[1673317398687,4.2929067,17202.0,17201.0,0.00261632]
[1673317400214,4.88685437,17202.0,17201.0,0.00261632]
[1673317400446,5.15942382,17202.0,17201.0,0.00261632]
[1673317400700,4.57245455,17202.0,17201.0,0.00261632]
[1673317400957,5.15942382,17202.0,17201.0,0.00261632]
[1673317402974,4.57245455,17202.0,17201.0,0.00261632]
[1673317403284,5.69013956,17202.0,17201.0,0.00261632]
[1673317404084,5.32822382,17202.0,17201.0,4.156e-05]
[1673317408673,0.2,17201.0,17200.0,0.00770543]
[1673317408934,4.57018996,17201.0,17200.0,0.00770543]
[1673317409215,0.15455,17200.0,17199.0,0.01425987]
[1673317409479,4.31264536,17200.0,17199.0,0.01425987]
[1673317409711,4.26581158,17200.0,17199.0,0.01425987]
[1673317409966,4.84520264,17200.0,17199.0,0.01425987]
[1673317410489,4.98220264,17200.0,17199.0,0.01425987]
[1673317411502,4.40281158,17200.0,17199.0,0.01425987]
[1673317413273,4.40287308,17200.0,17199.0,0.01425987]
[1673317413524,4.92383378,17200.0,17199.0,0.01425987]
[1673317413787,4.40287308,17200.0,17199.0,0.01425987]
[1673317414038,4.40287308,17200.0,17199.0,0.01084861]
[1673317414504,4.65132805,17200.0,17199.0,0.01084861]
[1673317416542,4.96766429,17200.0,17199.0,0.01084861]
[1673317419136,4.96766429,17200.0,17199.0,0.00617247]
[1673317419137,6.11013702,17200.0,17199.0,0.00617247]
[1673317419683,6.11013702,17200.0,17199.0,4.7e-07]
[1673317419907,0.2,17199.0,17198.0,0.01375176]
[1673317420156,3.3716169,17199.0,17198.0,0.01375176]
[1673317420419,5.40539584,17199.0,17198.0,0.01375176]
[1673317421170,5.65539584,17199.0,17198.0,0.01375176]
[1673317421425,5.42765479,17199.0,17198.0,0.01375176]
[1673317422148,5.29065479,17199.0,17198.0,0.01375176]
[1673317422412,5.42765479,17199.0,17198.0,0.01375176]
[1673317422915,6.01391441,17199.0,17198.0,0.01375176]
[1673317423531,5.42765479,17199.0,17198.0,0.01375176]
[1673317424155,6.01416617,17199.0,17198.0,0.00711465]
[1673317426376,6.01416617,17199.0,17198.0,0.00211465]
[1673317429412,5.84566617,17199.0,17198.0,0.00211465]
[1673317430659,5.23416617,17199.0,17198.0,0.00211465]
[1673317430909,4.64765479,17199.0,17198.0,0.00211465]
[1673317431402,5.23416617,17199.0,17198.0,0.00211465]
[1673317432173,5.09716617,17199.0,17198.0,0.00211465]
[1673317432417,5.09716617,17199.0,17198.0,0.00411465]
[1673317432418,4.64765479,17199.0,17198.0,0.00411465]
[1673317432672,5.23416617,17199.0,17198.0,0.00411465]
[1673317432917,4.06826373,17199.0,17198.0,0.00411465]
[1673317434139,3.89946373,17199.0,17198.0,0.00317008]
[1673317434638,4.48597511,17199.0,17198.0,0.00317008]
[1673317442710,3.89946373,17199.0,17198.0,0.00317008]
[1673317444010,0.2,17198.0,17197.0,0.01379354]
[1673317444263,3.34848391,17198.0,17197.0,0.01379354]
[1673317444523,3.63797591,17198.0,17197.0,0.01379354]
[1673317444795,3.89594551,17198.0,17197.0,0.01379354]
[1673317445080,3.88797591,17198.0,17197.0,0.01379354]
[1673317445335,4.28294551,17198.0,17197.0,0.01479354]
[1673317447933,4.28300701,17198.0,17197.0,0.01479354]
[1673317450225,3.69562293,17198.0,17197.0,0.01479354]
[1673317451960,4.2895706,17198.0,17197.0,0.01479354]
[1673317454161,4.2895706,17198.0,17197.0,0.01157344]
[1673317456791,4.200401,17198.0,17197.0,0.01157344]
[1673317457053,4.4583706,17198.0,17197.0,0.01157344]
[1673317457840,4.4583706,17198.0,17197.0,0.00683359]
[1673317463443,4.4583706,17198.0,17197.0,0.00062891]
[1673317464217,4.4583706,17198.0,17197.0,0.00049507]
[1673317472166,4.4583706,17198.0,17197.0,0.00033146]
[1673317472679,4.4583706,17198.0,17197.0,0.00019848]
[1673317474242,4.4583706,17198.0,17197.0,0.00013848]
[1673317480658,4.4583706,17198.0,17197.0,7.848e-05]
[1673317481414,4.98470658,17198.0,17197.0,7.848e-05]
[1673317482994,4.4583706,17198.0,17197.0,7.848e-05]
[1673317483508,5.541504,17198.0,17197.0,7.848e-05]
[1673317483724,5.90576339,17198.0,17195.0,0.01675321]
[1673317484058,2.06615041,17197.0,17195.0,0.01675321]
[1673317484336,3.82782713,17196.0,17195.0,0.01351933]
[1673317484601,4.09429673,17196.0,17195.0,0.01351933]
[1673317485189,4.34429673,17196.0,17195.0,0.01351933]
[1673317485452,4.34429673,17196.0,17195.0,0.01451933]
[1673317485453,4.85102144,17196.0,17195.0,0.01451933]
[1673317486486,4.85102144,17196.0,17195.0,0.01351933]
[1673317486748,4.98702144,17196.0,17195.0,0.01451933]
[1673317487870,4.98708294,17196.0,17195.0,0.01451933]
[1673317489475,5.32468294,17196.0,17195.0,0.01451933]
[1673317489710,5.32468294,17196.0,17195.0,0.00888801]
[1673317489943,5.38941415,17196.0,17195.0,0.00888801]
[1673317491443,6.24477285,17196.0,17195.0,0.00888801]
[1673317491687,5.38941415,17196.0,17195.0,1e-08]
[1673317493966,5.05181415,17196.0,17194.0,0.01873466]
[1673317494209,1.85569961,17195.0,17194.0,0.01873466]
[1673317494446,3.81805015,17195.0,17194.0,0.01873466]
[1673317494941,4.06805015,17195.0,17194.0,0.01873466]
[1673317495182,4.20405015,17195.0,17194.0,0.01973466]
[1673317495661,4.60718193,17195.0,17194.0,0.01973466]
[1673317497911,4.60718193,17195.0,17194.0,0.01253373]
[1673317499625,4.20405015,17195.0,17194.0,0.01253373]
[1673317499881,4.5550973,17195.0,17194.0,0.01253373]
[1673317501402,5.14239139,17195.0,17194.0,0.01253373]
[1673317501683,4.5550973,17195.0,17194.0,0.01253373]
[1673317501902,5.14244361,17195.0,17194.0,0.01253373]
[1673317502660,4.5550973,17195.0,17194.0,0.01253373]
[1673317504222,4.5550973,17195.0,17194.0,0.00737554]
[1673317513370,4.7238973,17195.0,17194.0,0.00737554]
[1673317513587,4.7238973,17195.0,17194.0,0.00465538]
[1673317514104,4.7238973,17195.0,17194.0,0.00062172]
[1673317514368,4.5878973,17195.0,17193.0,0.02089268]
[1673317514627,3.04158081,17194.0,17193.0,0.02089268]
[1673317514881,5.08436681,17194.0,17193.0,0.02089268]
[1673317515686,5.33436681,17194.0,17193.0,0.02089268]
[1673317516694,5.47142831,17194.0,17193.0,0.02089268]
[1673317521585,5.00312831,17194.0,17193.0,0.02089268]
[1673317524515,4.53073858,17194.0,17193.0,0.02089268]
[1673317524778,5.08408556,17194.0,17193.0,0.02089268]
[1673317525063,4.49013789,17194.0,17193.0,0.02089268]
[1673317525309,3.26987804,17194.0,17193.0,0.02089268]
[1673317525559,2.82787296,17194.0,17193.0,0.02089268]
[1673317525817,4.18050798,17194.0,17193.0,0.02089268]
[1673317526825,4.48050798,17194.0,17193.0,0.02089268]
[1673317527084,4.73847758,17194.0,17193.0,0.02089268]
[1673317528089,4.43847758,17194.0,17193.0,0.02089268]
[1673317528342,4.18050798,17194.0,17193.0,0.02089268]
[1673317528849,4.18056948,17194.0,17193.0,0.02089268]
[1673317531650,4.36190758,17194.0,17193.0,0.02089268]
[1673317531904,3.70404711,17194.0,17193.0,0.02089268]
[1673317532164,4.22108523,17194.0,17193.0,0.02089268]
[1673317532419,3.56228173,17194.0,17193.0,0.02089268]
[1673317532737,4.221344,17194.0,17193.0,0.02089268]
[1673317533201,3.63417653,17194.0,17193.0,0.02089268]
[1673317533471,2.97505276,17194.0,17193.0,0.02089268]
[1673317533728,3.34470037,17194.0,17193.0,0.02089268]
[1673317533992,3.93186784,17194.0,17193.0,0.02089268]
[1673317534250,3.63419237,17194.0,17193.0,0.02089268]
[1673317534755,4.22135984,17194.0,17193.0,0.02089268]
[1673317535276,4.00432172,17194.0,17193.0,0.02089268]
[1673317535519,3.86732172,17194.0,17193.0,0.02189268]
[1673317535761,4.00432172,17194.0,17193.0,0.02189268]
[1673317536303,4.00438322,17194.0,17193.0,0.02189268]
[1673317536563,4.16297794,17194.0,17193.0,0.02189268]
[1673317537331,3.70438322,17194.0,17193.0,0.02189268]
[1673317538378,3.41489122,17194.0,17193.0,0.02189268]
[1673317539683,3.70438322,17194.0,17193.0,0.02189268]
[1673317541265,4.00438322,17194.0,17193.0,0.02189268]
[1673317541514,3.70438322,17194.0,17193.0,0.02189268]
[1673317541777,4.13297794,17194.0,17193.0,0.02189268]
[1673317544111,3.30425765,17194.0,17193.0,0.02189268]
[1673317544366,3.67428395,17194.0,17193.0,0.02189268]
[1673317545383,3.10909444,17194.0,17193.0,0.02189268]
[1673317545645,3.70257621,17194.0,17193.0,0.02189268]
[1673317545892,3.10909444,17194.0,17193.0,0.02189268]
[1673317546640,3.70820732,17194.0,17193.0,0.02189268]
[1673317547948,3.62264678,17194.0,17193.0,0.02189268]
[1673317548239,4.20981425,17194.0,17193.0,0.02189268]
[1673317548982,4.77962309,17194.0,17193.0,0.02189268]
[1673317549237,5.03759269,17194.0,17193.0,0.02189268]
[1673317549753,3.95429301,17194.0,17193.0,0.02189268]
[1673317550009,4.28021301,17194.0,17193.0,0.02189268]
[1673317550764,3.69304554,17194.0,17193.0,0.02189268]
[1673317553420,3.32295774,17194.0,17193.0,0.02189268]
[1673317553917,3.03346574,17194.0,17193.0,0.02189268]
[1673317556218,3.55604291,17194.0,17193.0,0.02189268]
[1673317556470,3.55598141,17194.0,17193.0,0.0218052]
[1673317556983,2.97438341,17194.0,17193.0,0.0218052]
[1673317557250,2.97438341,17194.0,17193.0,0.1906052]
[1673317557510,2.45180624,17194.0,17193.0,0.1906052]
[1673317557782,2.97438341,17194.0,17193.0,0.1906052]
[1673317558323,2.45180624,17194.0,17193.0,0.1906052]
[1673317559831,2.97438341,17194.0,17193.0,0.1906052]
[1673317560087,2.97444491,17194.0,17193.0,0.1906052]
[1673317560349,2.97438341,17194.0,17193.0,0.1906052]
[1673317560854,2.45180624,17194.0,17193.0,0.1906052]
[1673317561108,2.97444491,17194.0,17193.0,0.1906052]
[1673317561364,2.97438341,17194.0,17193.0,0.1906052]
[1673317562127,2.45180624,17194.0,17193.0,0.1906052]
[1673317562393,2.45186774,17194.0,17193.0,0.1906052]
[1673317562654,2.97444491,17194.0,17193.0,0.1906052]
[1673317563959,2.83744491,17194.0,17193.0,0.1896052]
[1673317564236,2.97344491,17194.0,17193.0,0.1936052]
[1673317565077,2.83744491,17194.0,17193.0,0.1896052]
[1673317565550,2.97344491,17194.0,17193.0,0.1936052]
[1673317565800,2.83744491,17194.0,17193.0,0.1896052]
[1673317566112,2.97344491,17194.0,17193.0,0.1936052]
[1673317566359,2.97344491,17194.0,17193.0,0.1896052]
[1673317566613,3.55504291,17194.0,17193.0,0.1896052]
[1673317567172,2.97344491,17194.0,17193.0,0.1896052]
[1673317567426,3.12693691,17194.0,17193.0,0.1896052]
[1673317567688,3.26393691,17194.0,17193.0,0.1916052]
[1673317568205,2.97444491,17194.0,17193.0,0.1916052]
[1673317569017,3.26393691,17194.0,17193.0,0.1916052]
[1673317572072,3.61470473,17194.0,17193.0,0.1916052]
[1673317572323,3.26393691,17194.0,17193.0,0.1916052]
[1673317572575,3.84553491,17194.0,17193.0,0.1916052]
[1673317573316,3.61454567,17194.0,17193.0,0.1916052]
[1673317574566,3.61455178,17194.0,17193.0,0.1916052]
[1673317574815,3.26393691,17194.0,17193.0,0.1916052]
[1673317575058,2.97444491,17194.0,17193.0,0.1916052]
[1673317575301,3.61450464,17194.0,17193.0,0.1916052]
[1673317575554,3.61427311,17194.0,17193.0,0.1916052]
[1673317575800,3.61421161,17194.0,17193.0,0.1916052]
[1673317576064,3.26364388,17194.0,17193.0,0.1916052]
[1673317576342,2.97421338,17194.0,17193.0,0.1916052]
[1673317577087,3.55581138,17194.0,17193.0,0.1916052]
[1673317577338,3.55581138,17194.0,17193.0,0.0228052]
[1673317578328,2.97415188,17194.0,17193.0,0.0228052]
[1673317578583,2.97421338,17194.0,17193.0,0.0228052]
[1673317578836,3.55581138,17194.0,17193.0,0.02273185]
[1673317580601,2.97421338,17194.0,17193.0,0.02273185]
[1673317583387,3.61453047,17194.0,17193.0,0.02273185]
[1673317583928,4.19612847,17194.0,17193.0,0.02273185]